[Event "55th Rubinstein Memorial-C 2019"]
[Site "Polanica-Zdroj"]
[Date "2019.08.24"]
[Round "8.17"]
[White "Simon, Marek"]
[Black "Pisarek, Elzbieta"]
[Result "1-0"]
[ECO "E11"]
[WhiteElo "1879"]
[BlackElo "1581"]
[Annotator "NA"]
[PlyCount "75"]
[EventDate "2019.08.17"]
[EventType "swiss"]
[EventCountry "POL"]
[SourceTitle "playchess.com"]
[Source "ChessBase"]
[SourceQuality "1"]
[TimeControl "40/5400+30:1800+30"]

1. d4 {[%emt 0:00:00]} Nf6 {[%emt 0:00:00]} 2. c4 {[%emt 0:00:00]} e6 {[%emt 0:00:00]} 3. Nf3 {[%emt 0:00:00]} Bb4+ {[%emt 0:00:48]} 4. Nbd2 {[%emt 0:00:08]} O-O {[%emt 0:00:33]} 5. a3 {[%emt 0:00:19]} Bxd2+ {[%emt 0:00:15]} 6. Qxd2 {[%emt 0:00:02]} b6 {[%emt 0:01:26]} 7. e3 {[%emt 0:00:29]} Bb7 {[%emt 0:00:24]} 8. Be2 {[%emt 0:00:44]} d6 {[%emt 0:00:47]} 9. O-O {[%emt 0:00:16]} Nbd7 {[%emt 0:00:37]} 10. b4 {[%emt 0:01:03]} c5 {[%emt 0:04:12]} 11. dxc5 {[%emt 0:05:00]} dxc5 {[%emt 0:00:25]} 12. Rd1 {[%emt 0:01:17]} Qe7 {[%emt 0:03:39]} 13. Bb2 {[%emt 0:10:02]} Rfd8 $11 {[%emt 0:01:41]} 14. Qc3 {[%emt 0:16:01]} Qf8 {[%emt 0:10:31]} 15. b5 {[%emt 0:01:49]} Ne4 {[%emt 0:10:52]} 16. Qc2 {[%emt 0:00:44]} h6 {[%emt 0:04:35]} 17. a4 {[%emt 0:02:08]} a6 {[%emt 0:03:59]} 18. Ne5 {[%emt 0:11:25]} Nxe5 {[%emt 0:08:48]} 19. Bxe5 {[%emt 0:01:43]} Nd6 {[%emt 0:06:21]} 20. a5 {[%emt 0:11:07]} bxa5 {[%emt 0:10:01]} 21. Rxa5 {[%emt 0:00:19]} axb5 {[%emt 0:03:50]} 22. Rxa8 {[%emt 0:00:48]} Bxa8 {[%emt 0:00:06]} 23. cxb5 {[%emt 0:00:33]} Ne4 {[%emt 0:07:59]} 24. Rxd8 {[%emt 0:13:35]} Qxd8 {[%emt 0:00:09]} 25. f3 {[%emt 0:00:45]} Qd2 {[%emt 0:02:05]} 26. Qxd2 {[%emt 0:00:45]} Nxd2 {[%emt 0:00:04]} 27. b6 {[%emt 0:02:19]} Bb7 {[%emt 0:03:23]} 28. Kf2 {[%emt 0:01:45]} Nb3 {[%emt 0:04:18]} 29. Bc3 {[%emt 0:00:19]} c4 {[%emt 0:01:45]} 30. Bb4 {[%emt 0:02:25]} c3 {[%emt 0:01:43]} 31. Bd3 {[%emt 0:04:44]} Nc1 {[%emt 0:01:54]} 32. Bc4 {[%emt 0:02:39]} Bd5 {[%emt 0:05:21]} 33. Bxc3 {[%emt 0:00:19]} Bb7 {[%emt 0:01:52]} 34. Bb2 {[%emt 0:00:16]} Kf8 {[%emt 0:00:45]} 35. Bxc1 {[%emt 0:00:16]} Ke7 {[%emt 0:00:08]} 36. Ba3+ {[%emt 0:00:14]} Kd7 {[%emt 0:00:29]} 37. Bb5+ {[%emt 0:00:05]} Bc6 {[%emt 0:00:35]} 38. b7 {[%emt 0:00:08]} 1-0

[Event "55th Rubinstein Memorial-C 2019"]
[Site "Polanica-Zdroj"]
[Date "2019.08.24"]
[Round "8.18"]
[White "Raczek, Krzysztof"]
[Black "Talik, Patryk"]
[Result "0-1"]
[ECO "C02"]
[WhiteElo "1587"]
[BlackElo "1975"]
[Annotator "NA"]
[PlyCount "98"]
[EventDate "2019.08.17"]
[EventType "swiss"]
[EventCountry "POL"]
[SourceTitle "playchess.com"]
[Source "ChessBase"]
[SourceQuality "1"]
[TimeControl "40/5400+30:1800+30"]

1. e4 {[%emt 0:00:00]} e6 {[%emt 0:00:00]} 2. d4 {[%emt 0:00:00]} d5 {[%emt 0:00:00]} 3. e5 {[%emt 0:00:00]} c5 {[%emt 0:00:00]} 4. c3 {[%emt 0:00:06]} Nc6 {[%emt 0:00:00]} 5. Nf3 {[%emt 0:00:09]} Qb6 {[%emt 0:00:00]} 6. a3 {[%emt 0:00:07]} f6 {[%emt 0:00:00]} 7. Bd3 {[%emt 0:00:12]} fxe5 {[%emt 0:00:05]} 8. Nxe5 {[%emt 0:00:08]} Nxe5 {[%emt 0:00:41]} 9. dxe5 {[%emt 0:00:07]} g6 {[%emt 0:00:20]} 10. O-O {[%emt 0:08:01]} Bg7 {[%emt 0:00:06]} 11. Re1 {[%emt 0:01:55]} Ne7 {[%emt 0:00:33]} 12. Kh1 {[%emt 0:01:29]} (12. Bc2 $14 {stays ahead.}) 12... c4 {[%emt 0:00:21]} 13. Bc2 {[%emt 0:06:38]} Qxf2 {[%emt 0:01:09]} 14. Rf1 {[%emt 0:00:13]} Qb6 {[%emt 0:00:39]} 15. Qe2 {[%emt 0:01:26]} Bd7 {[%emt 0:00:53]} 16. Bg5 {[%emt 0:00:40]} Rf8 {[%emt 0:03:35]} 17. Nd2 $11 {[%emt 0:05:12]} Qc7 {[%emt 0:12:05]} 18. Rxf8+ {[%emt 0:36:41]} Bxf8 {[%emt 0:00:11]} 19. Qf2 {[%emt 0:00:31]} Qb6 {[%emt 0:09:58]} 20. Qxb6 {[%emt 0:21:32]} axb6 {[%emt 0:00:14]} 21. g4 {[%emt 0:01:58]} Ba4 {[%emt 0:00:16]} 22. Bb1 {[%emt 0:00:39]} Nc6 {[%emt 0:00:57]} 23. Nf3 {[%emt 0:01:02]} Kd7 {[%emt 0:09:28]} 24. Bf6 {[%emt 0:01:02]} Bd1 {[%emt 0:01:40]} 25. Ng5 {[%emt 0:00:35]} Bxg4 {[%emt 0:05:53]} 26. Nxh7 {[%emt 0:00:08]} Bh5 {[%emt 0:05:36]} 27. Ng5 {[%emt 0:04:49]} Be7 {[%emt 0:01:50]} 28. h4 {[%emt 0:00:52]} Bxf6 {[%emt 0:01:53]} 29. exf6 {[%emt 0:00:09]} Rf8 {[%emt 0:00:18]} 30. f7 {[%emt 0:03:42]} Ne5 {[%emt 0:01:36]} 31. Bc2 {[%emt 0:00:34]} Nxf7 {[%emt 0:09:17]} 32. Ba4+ {[%emt 0:01:15]} Ke7 {[%emt 0:00:41]} 33. Rf1 {[%emt 0:00:03]} Nxg5 {[%emt 0:00:49]} 34. Rxf8 {[%emt 0:00:03]} Kxf8 {[%emt 0:00:31]} 35. hxg5 {[%emt 0:00:04]} Ke7 {[%emt 0:00:32]} 36. Kg2 {[%emt 0:00:15]} Bg4 {[%emt 0:00:43]} 37. Kg3 {[%emt 0:01:04]} Bf5 {[%emt 0:00:08]} 38. Bd1 {[%emt 0:00:48]} Kd6 {[%emt 0:00:12]} 39. Kf4 {[%emt 0:01:09]} e5+ {[%emt 0:00:11]} 40. Ke3 {[%emt 0:00:04]} Kc5 {[%emt 0:00:21]} 41. Bf3 {[%emt 0:30:43]} d4+ {[%emt 0:30:19]} 42. cxd4+ {[%emt 0:00:12]} exd4+ {[%emt 0:00:07]} 43. Kd2 {[%emt 0:00:03]} Kd6 {[%emt 0:05:33]} 44. Bxb7 {[%emt 0:00:34]} Ke5 {[%emt 0:00:07]} 45. a4 {[%emt 0:01:12]} Be6 {[%emt 0:02:04]} 46. Kc1 {[%emt 0:02:54]} Kf4 {[%emt 0:00:32]} 47. Kd2 {[%emt 0:00:31]} Kxg5 {[%emt 0:01:22]} 48. b4 {[%emt 0:00:35]} cxb3 {[%emt 0:00:15]} 49. Be4 {[%emt 0:00:10]} Bf5 {[%emt 0:00:37]} 0-1

[Event "55th Rubinstein Memorial-C 2019"]
[Site "Polanica-Zdroj"]
[Date "2019.08.24"]
[Round "8.19"]
[White "Rog, Bartlomiej"]
[Black "Binkowska, Agata"]
[Result "1/2-1/2"]
[ECO "B40"]
[WhiteElo "1540"]
[BlackElo "1896"]
[Annotator "NA"]
[PlyCount "71"]
[EventDate "2019.08.17"]
[EventType "swiss"]
[EventCountry "POL"]
[SourceTitle "playchess.com"]
[Source "ChessBase"]
[SourceQuality "1"]
[TimeControl "40/5400+30:1800+30"]

1. e4 {[%emt 0:00:00]} c5 {[%emt 0:00:00]} 2. Nf3 {[%emt 0:00:03]} e6 {[%emt 0:00:00]} 3. d3 {[%emt 0:00:27]} Nc6 {[%emt 0:01:05]} 4. g3 {[%emt 0:00:43]} d6 {[%emt 0:00:29]} 5. Bg2 {[%emt 0:00:50]} Nge7 {[%emt 0:00:17]} 6. O-O {[%emt 0:02:00]} g6 {[%emt 0:00:25]} 7. d4 {[%emt 0:01:28]} cxd4 {[%emt 0:03:07]} 8. Nxd4 {[%emt 0:02:38]} a6 {[%emt 0:09:35]} 9. c4 {[%emt 0:01:19]} Bg7 $11 {[%emt 0:01:18]} 10. Be3 {[%emt 0:00:23]} O-O {[%emt 0:03:31]} 11. Nc3 {[%emt 0:01:04]} Ne5 {[%emt 0:14:58]} 12. b3 {[%emt 0:00:45]} f5 {[%emt 0:03:57]} 13. h3 {[%emt 0:07:23]} Nf7 {[%emt 0:08:00]} 14. Rc1 {[%emt 0:02:22]} Rb8 {[%emt 0:00:30]} 15. f4 {[%emt 0:19:47]} Bd7 {[%emt 0:02:40]} 16. Qe2 {[%emt 0:02:11]} Qc8 {[%emt 0:03:59]} 17. Rfd1 {[%emt 0:02:10]} e5 {[%emt 0:10:36]} 18. Nf3 {[%emt 0:07:53]} Bc6 {[%emt 0:04:46]} 19. Bb6 {[%emt 0:12:39]} exf4 {[%emt 0:09:38]} 20. gxf4 {[%emt 0:00:51]} Re8 {[%emt 0:02:26]} 21. Nd4 {[%emt 0:02:33]} fxe4 {[%emt 0:01:33]} 22. Nd5 {[%emt 0:01:59]} Nf5 {[%emt 0:01:53]} 23. Nxf5 {[%emt 0:02:17]} Qxf5 {[%emt 0:00:27]} 24. Qe3 {[%emt 0:02:53]} Bh6 {[%emt 0:02:41]} 25. Qc3 {[%emt 0:03:53]} Bxd5 {[%emt 0:05:47]} 26. Rxd5 {[%emt 0:00:02]} Qxf4 {[%emt 0:01:40]} 27. Rf1 {[%emt 0:00:01]} Qh4 {[%emt 0:00:11]} 28. Bc7 {[%emt 0:01:47]} Rbc8 {[%emt 0:00:27]} 29. Bxd6 {[%emt 0:00:26]} Bg7 {[%emt 0:00:34]} 30. Qe3 {[%emt 0:00:54]} Nxd6 {[%emt 0:01:22]} 31. Rxd6 {[%emt 0:00:52]} Be5 {[%emt 0:01:11]} 32. Rd7 {[%emt 0:00:35]} Rc7 {[%emt 0:01:58]} 33. Rff7 {[%emt 0:08:57]} Rxd7 {[%emt 0:01:19]} 34. Rxd7 {[%emt 0:00:01]} Bf4 {[%emt 0:03:14]} 35. Qc3 {[%emt 0:00:42]} Be5 {[%emt 0:00:12]} 36. Qe3 {[%emt 0:00:01]} 1/2-1/2

[Event "55th Rubinstein Memorial-C 2019"]
[Site "Polanica-Zdroj"]
[Date "2019.08.24"]
[Round "8.20"]
[White "Obrochta, Lena"]
[Black "Jeske, Jerzy"]
[Result "1/2-1/2"]
[ECO "B74"]
[WhiteElo "1870"]
[BlackElo "1547"]
[Annotator "NA"]
[PlyCount "111"]
[EventDate "2019.08.17"]
[EventType "swiss"]
[EventCountry "POL"]
[SourceTitle "playchess.com"]
[Source "ChessBase"]
[SourceQuality "1"]
[TimeControl "40/5400+30:1800+30"]

1. e4 {[%emt 0:00:00]} c5 {[%emt 0:00:05]} 2. Nf3 {[%emt 0:00:00]} d6 {[%emt 0:00:07]} 3. d4 {[%emt 0:00:00]} cxd4 {[%emt 0:00:15]} 4. Nxd4 {[%emt 0:00:00]} Nf6 {[%emt 0:01:08]} 5. Nc3 {[%emt 0:00:00]} g6 {[%emt 0:02:02]} 6. Be3 {[%emt 0:00:49]} Bg7 {[%emt 0:00:08]} 7. Be2 {[%emt 0:00:17]} Nc6 {[%emt 0:00:31]} 8. Nb3 {[%emt 0:00:35]} O-O {[%emt 0:03:21]} 9. O-O {[%emt 0:00:23]} Bd7 {[%emt 0:01:24]} 10. f4 {[%emt 0:00:52]} Rc8 {[%emt 0:04:54]} 11. Kh1 {[%emt 0:07:45]} a6 {[%emt 0:01:56]} 12. a4 {[%emt 0:01:04]} Be6 {[%emt 0:12:18]} 13. f5 {[%emt 0:06:42]} Bxb3 {[%emt 0:02:12]} 14. cxb3 {[%emt 0:00:06]} Qa5 {[%emt 0:03:16]} 15. g4 {[%emt 0:09:29]} Qe5 {[%emt 0:09:19]} 16. Bd3 {[%emt 0:18:57]} d5 {[%emt 0:09:20]} 17. Bf4 {[%emt 0:09:09]} Qd4 {[%emt 0:00:16]} 18. e5 {[%emt 0:03:40]} Nxe5 {[%emt 0:03:23]} 19. Be2 {[%emt 0:11:16]} Qxd1 {[%emt 0:03:48]} 20. Raxd1 {[%emt 0:01:15]} Nexg4 {[%emt 0:04:53]} 21. fxg6 {[%emt 0:06:04]} hxg6 {[%emt 0:00:55]} 22. h3 {[%emt 0:10:18]} Nh6 {[%emt 0:06:11]} 23. Nxd5 {[%emt 0:02:05]} Rfe8 {[%emt 0:14:02]} 24. Nxf6+ {[%emt 0:03:15]} exf6 {[%emt 0:00:08]} 25. Bxh6 {[%emt 0:01:14]} Bxh6 {[%emt 0:00:09]} 26. Bc4 {[%emt 0:00:07]} Rc7 {[%emt 0:03:09]} 27. Rxf6 {[%emt 0:00:41]} Kg7 {[%emt 0:01:35]} 28. Rb6 {[%emt 0:02:17]} Be3 {[%emt 0:01:17]} 29. Rbd6 {[%emt 0:00:47]} Ree7 {[%emt 0:01:01]} 30. Kg2 {[%emt 0:01:13]} Bc5 {[%emt 0:00:02]} 31. R6d5 {[%emt 0:01:09]} Bb4 {[%emt 0:00:22]} 32. R5d4 {[%emt 0:01:33]} Bc5 {[%emt 0:00:16]} 33. Rd5 {[%emt 0:00:17]} a5 {[%emt 0:01:12]} 34. Rf1 {[%emt 0:00:47]} b6 {[%emt 0:00:17]} 35. Rfd1 {[%emt 0:00:32]} Rc6 {[%emt 0:00:59]} 36. R5d3 {[%emt 0:01:37]} f5 {[%emt 0:00:42]} 37. Rd8 {[%emt 0:00:22]} Kh7 {[%emt 0:03:48]} 38. Rf8 {[%emt 0:01:01]} Rd6 {[%emt 0:02:21]} 39. Rxd6 {[%emt 0:00:54]} Bxd6 {[%emt 0:00:06]} 40. Rf6 {[%emt 0:00:12]} Bc5 {[%emt 0:00:10]} 41. Rc6 {[%emt 0:31:12]} Rd7 {[%emt 0:30:48]} 42. Re6 {[%emt 0:00:17]} Kh6 {[%emt 0:00:35]} 43. Kf3 {[%emt 0:00:18]} Kg5 {[%emt 0:00:20]} 44. Bb5 {[%emt 0:00:30]} Rh7 {[%emt 0:00:25]} 45. Bf1 {[%emt 0:00:24]} Rh4 {[%emt 0:00:25]} 46. Kg3 {[%emt 0:00:37]} Rd4 {[%emt 0:00:17]} 47. h4+ {[%emt 0:00:55]} Kh6 {[%emt 0:01:24]} 48. Be2 {[%emt 0:00:13]} Re4 {[%emt 0:00:53]} 49. Rxe4 {[%emt 0:00:24]} fxe4 {[%emt 0:00:01]} 50. Kf4 {[%emt 0:00:23]} e3 {[%emt 0:00:05]} 51. Kg4 {[%emt 0:00:15]} Bd4 {[%emt 0:00:10]} 52. Kf3 {[%emt 0:00:31]} Kg7 {[%emt 0:00:05]} 53. Ke4 {[%emt 0:00:20]} Bc5 {[%emt 0:00:08]} 54. h5 {[%emt 0:00:37]} gxh5 {[%emt 0:00:13]} 55. Bxh5 {[%emt 0:00:04]} Kf6 {[%emt 0:00:16]} 56. Be2 {[%emt 0:00:06]} 1/2-1/2

[Event "55th Rubinstein Memorial-C 2019"]
[Site "Polanica-Zdroj"]
[Date "2019.08.24"]
[Round "8.21"]
[White "Mulawa, Cyprian"]
[Black "Gromada, Andrzej"]
[Result "1/2-1/2"]
[ECO "C06"]
[WhiteElo "1578"]
[BlackElo "1721"]
[Annotator "NA"]
[PlyCount "101"]
[EventDate "2019.08.17"]
[EventType "swiss"]
[EventCountry "POL"]
[SourceTitle "playchess.com"]
[Source "ChessBase"]
[SourceQuality "1"]
[TimeControl "40/5400+30:1800+30"]

1. e4 {[%emt 0:00:00]} e6 {[%emt 0:00:03]} 2. d4 {[%emt 0:00:00]} d5 {[%emt 0:00:03]} 3. Nd2 {[%emt 0:00:05]} Nf6 {[%emt 0:00:21]} 4. e5 {[%emt 0:00:06]} Nfd7 {[%emt 0:00:07]} 5. Bd3 {[%emt 0:00:05]} c5 {[%emt 0:00:15]} 6. c3 {[%emt 0:00:09]} Nc6 {[%emt 0:00:06]} 7. Ne2 {[%emt 0:00:21]} cxd4 {[%emt 0:00:46]} 8. cxd4 {[%emt 0:00:31]} f6 {[%emt 0:00:19]} 9. exf6 {[%emt 0:00:06]} Qxf6 {[%emt 0:00:10]} 10. Nf3 {[%emt 0:00:10]} h6 {[%emt 0:00:08]} 11. O-O {[%emt 0:00:41]} Bd6 {[%emt 0:00:12]} 12. Ng3 {[%emt 0:00:43]} Nf8 {[%emt 0:06:46]} 13. Re1 {[%emt 0:02:23]} Bd7 {[%emt 0:00:43]} 14. Bc2 {[%emt 0:03:21]} O-O-O {[%emt 0:02:18]} 15. Ne5 {[%emt 0:02:19]} Qh4 {[%emt 0:05:13]} 16. Nf7 {[%emt 0:01:25]} Be8 {[%emt 0:10:40]} 17. Nxh8 {[%emt 0:01:02]} Qf6 {[%emt 0:00:15]} 18. Be3 {[%emt 0:03:06]} g5 {[%emt 0:00:07]} 19. Qf3 {[%emt 0:01:40]} Qxh8 {[%emt 0:00:23]} 20. Rad1 {[%emt 0:00:45]} Be7 {[%emt 0:07:54]} 21. Ba4 {[%emt 0:02:49]} Ng6 {[%emt 0:11:07]} 22. Bxc6 {[%emt 0:03:54]} Bxc6 {[%emt 0:00:05]} 23. Qf7 {[%emt 0:01:11]} Qg8 {[%emt 0:04:18]} 24. Qxg8 {[%emt 0:00:56]} Rxg8 {[%emt 0:00:02]} 25. Ne2 {[%emt 0:01:09]} Nh4 {[%emt 0:03:02]} 26. Nc3 {[%emt 0:01:21]} Kd7 {[%emt 0:01:09]} 27. Kh1 {[%emt 0:06:23]} Rf8 {[%emt 0:07:06]} 28. Rf1 {[%emt 0:03:07]} Nf5 {[%emt 0:00:38]} 29. Bc1 {[%emt 0:01:00]} Bf6 {[%emt 0:00:19]} 30. Be3 {[%emt 0:02:17]} Be7 {[%emt 0:02:09]} 31. g4 {[%emt 0:01:11]} Nh4 {[%emt 0:03:08]} 32. f4 {[%emt 0:00:48]} Rh8 {[%emt 0:01:42]} 33. Bf2 {[%emt 0:05:51]} gxf4 {[%emt 0:03:23]} 34. Bxh4 {[%emt 0:00:13]} Bxh4 {[%emt 0:00:01]} 35. Rxf4 {[%emt 0:00:11]} Ke7 {[%emt 0:02:28]} 36. b4 {[%emt 0:03:49]} b6 {[%emt 0:00:55]} 37. b5 {[%emt 0:00:53]} Bb7 {[%emt 0:00:03]} 38. Rdf1 {[%emt 0:00:31]} Rh7 {[%emt 0:00:41]} 39. Rf8 {[%emt 0:01:35]} e5 {[%emt 0:01:41]} 40. R8f5 {[%emt 0:00:47]} exd4 {[%emt 0:01:06]} 41. Ne2 {[%emt 0:34:09]} d3 {[%emt 0:30:53]} 42. Nf4 {[%emt 0:00:52]} d4+ {[%emt 0:00:21]} 43. Kg1 {[%emt 0:00:22]} d2 {[%emt 0:00:20]} 44. Ng6+ {[%emt 0:00:12]} Kd6 {[%emt 0:00:35]} 45. Nxh4 {[%emt 0:00:06]} Re7 {[%emt 0:00:13]} 46. Rd1 {[%emt 0:00:17]} Re1+ {[%emt 0:00:48]} 47. Rf1 {[%emt 0:00:04]} Re2 {[%emt 0:00:18]} 48. Rf2 {[%emt 0:05:35]} Re1+ {[%emt 0:00:02]} 49. Rf1 {[%emt 0:00:47]} Re2 {[%emt 0:00:02]} 50. Rf6+ {[%emt 0:03:35]} Kc5 {[%emt 0:00:14]} 51. Rf2 {[%emt 0:00:53]} 1/2-1/2

[Event "55th Rubinstein Memorial-C 2019"]
[Site "Polanica-Zdroj"]
[Date "2019.08.24"]
[Round "8.22"]
[White "Szydelko, Kazimierz"]
[Black "Werner, Kacper"]
[Result "1-0"]
[ECO "E68"]
[WhiteElo "1717"]
[BlackElo "1435"]
[Annotator "NA"]
[PlyCount "119"]
[EventDate "2019.08.17"]
[EventType "swiss"]
[EventCountry "POL"]
[SourceTitle "playchess.com"]
[Source "ChessBase"]
[SourceQuality "1"]
[TimeControl "40/5400+30:1800+30"]

1. d4 {[%emt 0:00:00]} Nf6 {[%emt 0:00:00]} 2. Nf3 {[%emt 0:00:00]} g6 {[%emt 0:00:03]} 3. c4 {[%emt 0:00:00]} Bg7 {[%emt 0:00:39]} 4. g3 {[%emt 0:00:01]} O-O {[%emt 0:01:07]} 5. Bg2 {[%emt 0:00:03]} d6 {[%emt 0:02:53]} 6. O-O {[%emt 0:00:17]} Nbd7 {[%emt 0:00:15]} 7. Nc3 {[%emt 0:00:21]} e5 {[%emt 0:01:17]} 8. e4 {[%emt 0:00:43]} h6 {[%emt 0:00:41]} 9. h3 {[%emt 0:02:23]} Kh7 {[%emt 0:04:04]} 10. Be3 {[%emt 0:02:46]} Qe7 {[%emt 0:16:27]} 11. Qc2 {[%emt 0:07:33]} c5 {[%emt 0:08:42]} 12. dxe5 {[%emt 0:02:07]} dxe5 {[%emt 0:00:09]} 13. Rad1 {[%emt 0:07:07]} b6 {[%emt 0:06:32]} 14. a4 {[%emt 0:07:44]} Bb7 {[%emt 0:09:38]} 15. Nd2 {[%emt 0:02:45]} Rfd8 {[%emt 0:13:05]} 16. Nb3 {[%emt 0:06:34]} a5 {[%emt 0:01:49]} 17. Nd5 {[%emt 0:02:31]} Nxd5 {[%emt 0:01:51]} 18. cxd5 {[%emt 0:00:22]} Nf6 {[%emt 0:02:51]} 19. Nd2 {[%emt 0:00:20]} Ne8 {[%emt 0:00:20]} 20. Nc4 {[%emt 0:00:18]} Qc7 {[%emt 0:02:13]} 21. Qb3 {[%emt 0:01:09]} Ba6 {[%emt 0:01:35]} 22. Rfe1 {[%emt 0:03:09]} Rab8 {[%emt 0:00:35]} 23. Bf1 {[%emt 0:04:51]} Bxc4 {[%emt 0:02:45]} 24. Qxc4 {[%emt 0:00:40]} Nd6 {[%emt 0:00:11]} 25. Qc2 {[%emt 0:00:10]} Qd7 {[%emt 0:00:39]} 26. g4 {[%emt 0:04:03]} g5 {[%emt 0:03:23]} 27. b3 {[%emt 0:06:49]} Kg8 {[%emt 0:01:47]} 28. f3 {[%emt 0:00:34]} f6 {[%emt 0:00:30]} 29. Re2 {[%emt 0:00:36]} Kf7 {[%emt 0:00:34]} 30. Rh2 {[%emt 0:00:13]} Rh8 {[%emt 0:00:11]} 31. h4 {[%emt 0:01:10]} Rbg8 {[%emt 0:01:38]} 32. Kg2 {[%emt 0:00:38]} Ke7 {[%emt 0:01:17]} 33. Bc4 {[%emt 0:01:08]} Qe8 {[%emt 0:01:34]} 34. Rdh1 {[%emt 0:00:22]} Qb8 {[%emt 0:03:09]} 35. Qd2 {[%emt 0:02:44]} Kf7 {[%emt 0:04:03]} 36. Kg3 {[%emt 0:01:44]} Kg6 {[%emt 0:00:31]} 37. Qg2 {[%emt 0:02:32]} Kf7 {[%emt 0:00:47]} 38. Rh3 {[%emt 0:05:08]} Qe8 {[%emt 0:00:47]} 39. Qe2 {[%emt 0:00:42]} Qc8 {[%emt 0:00:14]} 40. Qd2 {[%emt 0:01:18]} Kg6 {[%emt 0:00:11]} 41. R1h2 {[%emt 0:30:20]} Qd8 {[%emt 0:31:08]} 42. Qc1 {[%emt 0:00:49]} Kf7 {[%emt 0:00:09]} 43. Bd3 {[%emt 0:02:03]} Qb8 {[%emt 0:02:20]} 44. Rc2 {[%emt 0:00:35]} Rc8 {[%emt 0:00:57]} 45. Rh1 {[%emt 0:01:35]} Qa8 {[%emt 0:00:09]} 46. Qd2 {[%emt 0:01:43]} Qb7 {[%emt 0:01:40]} 47. Rhc1 {[%emt 0:00:34]} Ra8 {[%emt 0:01:50]} 48. Qe2 {[%emt 0:06:51]} Qd7 {[%emt 0:02:05]} 49. Qd2 {[%emt 0:03:12]} Qb7 {[%emt 0:00:14]} 50. Bb5 {[%emt 0:00:39]} Rac8 {[%emt 0:01:03]} 51. Bc6 {[%emt 0:01:09]} Qa7 {[%emt 0:00:48]} 52. Bxc5 {[%emt 0:01:10]} bxc5 {[%emt 0:00:44]} 53. Rxc5 {[%emt 0:00:01]} Rhd8 {[%emt 0:01:06]} 54. Rxa5 {[%emt 0:02:11]} Qb6 {[%emt 0:00:17]} 55. b4 {[%emt 0:00:13]} Nxe4+ {[%emt 0:01:19]} 56. fxe4 {[%emt 0:00:41]} Rxc6 {[%emt 0:00:22]} 57. Rxc6 {[%emt 0:04:16]} Qxc6 {[%emt 0:00:03]} 58. dxc6 {[%emt 0:00:11]} Rxd2 {[%emt 0:00:02]} 59. c7 {[%emt 0:00:34]} Rc2 {[%emt 0:00:16]} 60. Rc5 {[%emt 0:00:14]} 1-0

[Event "55th Rubinstein Memorial-C 2019"]
[Site "Polanica-Zdroj"]
[Date "2019.08.24"]
[Round "8.23"]
[White "Arciszewska, Zuzanna"]
[Black "Szandurski, Radoslaw"]
[Result "1/2-1/2"]
[ECO "D35"]
[WhiteElo "1499"]
[BlackElo "1681"]
[Annotator "NA"]
[PlyCount "141"]
[EventDate "2019.08.17"]
[EventType "swiss"]
[EventCountry "POL"]
[SourceTitle "playchess.com"]
[Source "ChessBase"]
[SourceQuality "1"]
[TimeControl "40/5400+30:1800+30"]

1. d4 d5 2. c4 e6 3. Nc3 Nf6 4. Bf4 Bd6 5. Bxd6 Qxd6 6. e3 b6 7. Nf3 O-O 8. cxd5 exd5 9. Bd3 c5 10. dxc5 bxc5 11. O-O Bg4 12. Rc1 Nbd7 13. Be2 Rfd8 14. h3 Bh5 15. Qd2 Nb6 16. Rfd1 Rac8 17. b3 Qe7 18. Qb2 Rc7 19. Nb5 Rcc8 20. Nc3 Rb8 21. Qc2 Rbc8 22. Qb2 h6 23. Kh1 Ne4 24. Nxe4 dxe4 25. Nh2 Bxe2 26. Qxe2 Rc7 27. Nf1 Rxd1 28. Qxd1 Qe5 29. Qc2 f5 30. Nd2 Kf7 31. Kg1 Ke7 32. Nc4 Nxc4 33. Qxc4 Qe6 34. Qc3 Qf6 35. Qa5 Qb6 36. Qc3 Qf6 37. Qxf6+ Kxf6 38. Kf1 Ke5 39. Ke2 Kd5 40. Rc4 Kc6 41. Kd2 Rd7+ 42. Kc2 Kb5 43. Rc3 Rd6 44. Rc4 h5 45. h4 a5 46. Kc1 g5 47. hxg5 Rg6 48. Rc2 Rxg5 49. g3 h4 50. gxh4 Rg2 51. Rd2 Rh2 52. Kb2 Kc6 53. Ka3 f4 54. exf4 e3 55. Rd1 Rxf2 56. Re1 Rf3 57. h5 Kd5 58. h6 Rh3 59. h7 Ke4 60. Ka4 Rxh7 61. Kxa5 Ra7+ 62. Kb5 Rxa2 63. Kxc5 Kxf4 64. b4 e2 65. b5 Ke3 66. b6 Kd2 67. Rxe2+ Kxe2 68. b7 Rb2 69. Kc6 Kd3 70. Kc7 Rxb7+ 71. Kxb7 1/2-1/2

[Event "55th Rubinstein Memorial-C 2019"]
[Site "Polanica-Zdroj"]
[Date "2019.08.24"]
[Round "8.24"]
[White "Brzozowski, Pawel"]
[Black "Grzelak, Piotr"]
[Result "1-0"]
[ECO "C02"]
[WhiteElo "1496"]
[BlackElo "1673"]
[Annotator "NA"]
[PlyCount "73"]
[EventDate "2019.08.17"]
[EventType "swiss"]
[EventCountry "POL"]
[SourceTitle "playchess.com"]
[Source "ChessBase"]
[SourceQuality "1"]
[TimeControl "40/5400+30:1800+30"]

1. e4 {[%emt 0:00:00]} e6 {[%emt 0:08:01]} 2. d4 {[%emt 0:00:00]} d5 {[%emt 0:00:04]} 3. e5 {[%emt 0:00:00]} c5 {[%emt 0:00:06]} 4. c3 {[%emt 0:00:00]} Nc6 {[%emt 0:00:19]} 5. Nf3 {[%emt 0:00:00]} Bd7 {[%emt 0:01:09]} 6. a3 {[%emt 0:01:20]} f6 {[%emt 0:00:38]} 7. b4 {[%emt 0:01:54]} cxb4 {[%emt 0:01:18]} 8. cxb4 {[%emt 0:00:37]} a6 {[%emt 0:05:14]} 9. Bf4 {[%emt 0:08:11]} Qb6 {[%emt 0:03:59]} 10. Nc3 {[%emt 0:01:34]} Nce7 {[%emt 0:04:26]} 11. Rc1 {[%emt 0:15:30]} Ng6 {[%emt 0:04:01]} 12. Be3 {[%emt 0:08:00]} N8e7 {[%emt 0:07:03]} 13. Bd3 {[%emt 0:04:11]} Nc6 {[%emt 0:04:39]} 14. Na4 {[%emt 0:01:38]} Qd8 {[%emt 0:00:20]} 15. Qc2 {[%emt 0:02:00]} f5 {[%emt 0:08:21]} 16. h4 {[%emt 0:26:31]} Rc8 {[%emt 0:02:52]} 17. Qb3 {[%emt 0:04:04]} Be7 {[%emt 0:02:11]} 18. Nc5 {[%emt 0:10:06]} Bxc5 {[%emt 0:02:36]} 19. Rxc5 {[%emt 0:00:15]} h5 {[%emt 0:02:12]} 20. Bg5 {[%emt 0:02:37]} Qb6 {[%emt 0:02:26]} 21. O-O {[%emt 0:00:44]} Kf7 {[%emt 0:02:15]} 22. Rfc1 {[%emt 0:01:17]} Nge7 {[%emt 0:02:30]} 23. Be2 {[%emt 0:02:36]} Na7 {[%emt 0:01:56]} 24. Bxe7 {[%emt 0:00:44]} Kxe7 {[%emt 0:00:21]} 25. Qe3 {[%emt 0:00:31]} Qd8 {[%emt 0:03:27]} 26. Qg5+ {[%emt 0:02:53]} Kf7 {[%emt 0:00:15]} 27. Qe3 {[%emt 0:02:59]} Rxc5 {[%emt 0:00:33]} 28. dxc5 {[%emt 0:00:32]} Bb5 {[%emt 0:00:42]} 29. Bxb5 {[%emt 0:01:47]} Nxb5 {[%emt 0:00:22]} 30. a4 {[%emt 0:00:32]} Na7 {[%emt 0:01:02]} 31. Ng5+ {[%emt 0:00:56]} Ke7 {[%emt 0:00:34]} 32. b5 {[%emt 0:01:22]} axb5 {[%emt 0:05:07]} 33. c6 {[%emt 0:00:34]} Nxc6 {[%emt 0:03:40]} 34. axb5 {[%emt 0:00:08]} Nb8 {[%emt 0:02:43]} 35. Qc5+ {[%emt 0:00:18]} Ke8 {[%emt 0:02:16]} 36. Nxe6 {[%emt 0:00:23]} b6 {[%emt 0:01:40]} 37. Qc8 {[%emt 0:01:07]} 1-0